bitfinex/quotes_ETHUSD_20250925
["timestamp","ask_amount","ask_price","bid_price","bid_amount"]
[1758815095400,0.924,4009.0,4008.5,0.227]
[1758815095895,5.382189,4008.9,4008.6,0.4482]
[1758815096091,8.559189,4008.9,4008.7,0.227]
[1758815096410,6.217189,4008.9,4008.4,0.124]
[1758815096613,6.217189,4008.9,4008.5,0.4482]
[1758815096996,5.374772,4008.9,4008.5,0.4482]
[1758815097196,7.158785,4008.9,4008.5,0.4482]
[1758815098022,7.158785,4008.9,4007.0,0.792]
[1758815098209,0.124,4008.4,4007.6,0.124]
[1758815098526,0.124,4008.1,4007.7,0.227]
[1758815098696,0.124,4008.1,4007.8,0.227]
[1758815099326,0.124,4008.1,4007.9,0.227]
[1758815100211,0.124,4008.1,4008.0,0.6752]
[1758815100529,0.124,4008.1,4008.0,0.227]
[1758815101206,0.124,4008.1,4008.0,0.6752]
[1758815102926,0.124,4008.1,4007.6,0.4678]
[1758815103133,0.124,4008.1,4007.7,0.2485]
[1758815103328,0.124,4008.1,4007.6,0.2485]
[1758815103633,0.124,4008.1,4007.7,0.2485]
[1758815104031,13.545952,4008.0,4007.4,0.124]
[1758815104337,0.124,4007.7,4007.4,0.2485]
[1758815104545,0.124,4007.7,4007.5,0.7163]
[1758815104710,0.124,4007.7,4007.6,0.7163]
[1758815105529,0.124,4008.0,4007.6,0.7163]
[1758815105734,0.124,4008.0,4007.3,0.124]
[1758815105735,0.124,4008.0,4007.7,0.7163]
[1758815105927,0.124,4008.0,4007.8,0.2485]
[1758815106443,0.124,4008.0,4007.3,0.124]
[1758815106652,0.124,4008.0,4007.9,2.49507223]
[1758815107485,11.276096,4008.0,4007.9,2.49507223]
[1758815107625,14.291423,4008.0,4007.9,2.49507223]
[1758815107826,9.833277,4008.0,4007.9,2.49507223]
[1758815108032,5.325707,4008.0,4007.9,2.49507223]
[1758815108628,5.083007,4008.0,4007.1,0.124]
[1758815108837,23.31214,4007.9,4007.5,2.49525942]
[1758815109045,14.462545,4007.8,4007.6,2.49521844]
[1758815109242,0.7093,4007.8,4007.6,2.49524149]
[1758815109457,0.7093,4007.7,4006.8,2.49573241]
[1758815109930,7.874031,4007.6,4007.5,2.49532127]
[1758815111038,6.671304,4007.6,4007.5,2.49532127]
[1758815111645,17.427617,4007.5,4006.0,0.2468]
[1758815111876,4.242,4007.4,4007.0,2.4956307]
[1758815112061,18.671712,4007.3,4007.0,2.49562711]
[1758815112245,20.249672,4007.2,4006.9,2.49568292]
[1758815112445,13.835698,4007.1,4006.9,2.49569437]
[1758815112640,12.279279,4007.0,4006.2,2.49613099]
[1758815112842,13.776213,4006.9,4005.8,0.2468]
[1758815113088,26.546085,4006.8,4005.8,0.2468]
[1758815113248,20.523246,4006.7,4005.8,0.2468]
[1758815113444,20.362988,4006.7,4006.2,2.49607596]
[1758815113656,17.293271,4006.6,4006.4,2.49599394]
[1758815113949,0.52981657,4007.0,4006.4,2.49600638]
[1758815113950,11.709298,4006.5,4006.4,2.49600638]
[1758815114154,6.975349,4006.5,4006.4,2.49600638]
[1758815114355,0.77461657,4007.0,4006.6,2.49582891]
[1758815114579,18.020929,4006.9,4006.0,0.2468]
[1758815114743,7.518736,4006.8,4006.5,2.49590178]
[1758815114938,8.235736,4006.8,4005.8,0.4654]
[1758815115164,7.384781,4006.7,4006.5,2.49591528]
[1758815115356,3.178121,4006.7,4006.6,2.49588179]
[1758815115676,3.014164,4006.7,4006.6,2.49588179]
[1758815115863,7.720751,4006.8,4006.6,2.49588179]
[1758815116065,0.717,4006.7,4006.5,2.49593866]
[1758815116246,0.717,4006.7,4006.3,2.49602757]
[1758815116247,10.376052,4006.6,4006.3,2.49602757]
[1758815116446,26.79255,4006.3,4005.9,2.49628064]
[1758815116657,26.79255,4006.3,4005.3,2.74346977]
[1758815116658,31.094149,4006.2,4006.0,2.49623272]
[1758815116855,1.13799576,4006.7,4005.0,7.243]
[1758815116856,6.103023,4006.0,4005.9,2.49631793]
[1758815117060,4.850811,4006.0,4005.9,2.49631793]
[1758815117262,4.930811,4006.0,4005.9,2.49631793]
[1758815117461,8.871851,4006.3,4006.2,2.49608959]
[1758815117780,0.12143608,4006.4,4006.3,2.49606869]
[1758815117979,4.242,4006.4,4006.3,2.49606869]
[1758815118278,10.475187,4006.4,4006.2,2.49611168]
[1758815118487,8.905099,4006.3,4006.2,2.49611168]
[1758815118646,8.905099,4006.3,4004.7,2.49700854]
[1758815118647,9.622099,4006.3,4005.2,0.2468]
[1758815118856,9.622099,4006.3,4005.0,4.243]
[1758815118857,8.446096,4006.2,4005.0,4.243]
[1758815119052,4.242,4006.1,4005.8,2.4963719]
[1758815119290,4.242,4006.1,4005.0,4.4898]
[1758815119291,5.409374,4006.0,4005.0,4.243]
[1758815119486,0.717,4005.9,4005.0,6.73983566]
[1758815119656,4.822374,4005.8,4005.0,6.73983566]
[1758815119853,4.822374,4005.8,4005.6,2.49645307]
[1758815120086,5.428793,4005.6,4004.1,2.49743795]
[1758815120304,4.959,4005.5,4004.2,0.7122]
[1758815120502,12.432715,4005.4,4004.2,0.7122]
[1758815120707,12.432715,4005.4,4005.0,2.49686871]
[1758815120708,0.717,4005.3,4005.0,2.49686871]
[1758815120998,0.717,4005.3,4004.3,2.49731538]
[1758815120999,12.939801,4005.2,4005.1,2.49681655]
[1758815121155,13.154681,4005.2,4005.1,2.49681655]
[1758815121355,13.152384,4005.2,4005.1,2.49681655]
[1758815122359,6.289047,4005.2,4005.1,2.49681655]
[1758815122589,2.365362,4005.5,4005.4,2.49662955]
[1758815122799,2.08,4006.1,4005.9,2.4962721]
[1758815123010,5.08,4006.1,4006.0,2.49625561]
[1758815123160,25.304873,4006.1,4006.0,2.49625561]
[1758815123502,9.861621,4006.1,4006.0,2.49625561]
[1758815123703,2.3248,4006.6,4006.3,2.49606869]
[1758815123885,2.3248,4006.6,4006.4,2.49600638]
[1758815124203,13.32509623,4006.5,4006.4,2.49600638]
[1758815124405,13.20699429,4006.5,4006.4,2.49600638]
[1758815124697,14.84960829,4006.5,4006.4,2.49600638]
[1758815124898,15.09440829,4006.5,4006.4,2.49600638]
[1758815125704,26.00795929,4006.5,4006.4,2.49600638]
[1758815125883,27.86309654,4006.5,4006.4,2.49600638]
[1758815126081,25.55295354,4006.5,4006.4,2.49600638]
[1758815126453,10.99537754,4006.5,4006.4,2.49600638]
[1758815126761,23.03479129,4006.5,4006.4,2.49600638]
[1758815126962,22.64327406,4006.5,4006.4,2.49600638]
[1758815127496,29.71327406,4006.5,4006.4,2.49600638]
[1758815127662,15.85286306,4006.5,4006.4,2.49600638]
[1758815128691,27.63934906,4006.5,4006.4,2.49600638]
[1758815128866,25.63934906,4006.5,4006.4,2.49600638]
[1758815129070,15.88788606,4006.5,4006.4,2.49600638]
[1758815129593,23.90255206,4006.5,4006.4,2.49600638]
[1758815130487,20.93189206,4006.5,4006.4,2.49600638]
[1758815130655,14.57947506,4006.5,4006.4,2.49600638]
[1758815130857,18.82247506,4006.5,4006.4,2.49600638]
[1758815131058,18.82247506,4006.5,4006.3,2.49605458]
[1758815131059,3.1248,4006.4,4006.3,2.49605458]
[1758815131311,23.353963,4006.4,4006.1,2.49614214]
[1758815131517,33.175162,4006.3,4006.0,2.49621235]
[1758815131807,0.1248,4006.1,4006.0,2.49625561]
[1758815132010,30.747787,4006.1,4006.0,2.49625561]
[1758815132211,14.906295,4006.1,4005.9,2.4963009]
[1758815132365,12.946902,4006.0,4005.9,2.4963009]
[1758815132570,14.168319,4006.0,4005.9,2.4963009]
[1758815132801,0.1248,4005.9,4005.8,2.49836357]
[1758815132997,22.594743,4005.9,4005.8,2.49838024]
[1758815133172,26.4974273,4005.9,4005.8,0.002]
[1758815133569,10.3442743,4005.9,4005.8,0.002]
[1758815133813,8.0848,4005.9,4005.8,0.002]
[1758815134208,38.0848,4005.9,4005.8,0.002]
[1758815134595,8.0848,4005.9,4005.8,0.002]
[1758815134802,10.58111793,4005.9,4005.8,0.002]
[1758815134994,38.0848,4005.9,4005.8,0.002]
[1758815135202,40.60296225,4005.9,4005.8,0.002]
[1758815135500,40.60216225,4005.9,4005.8,0.002]
[1758815135695,28.72435025,4005.9,4005.8,0.002]
[1758815135897,31.22066818,4005.9,4005.8,0.002]
[1758815136591,13.4712341,4005.9,4005.8,0.002]
[1758815136917,6.73191617,4005.9,4005.8,0.002]
[1758815137119,37.20301925,4005.9,4005.8,0.002]
[1758815137322,42.68216225,4005.9,4005.8,0.002]
[1758815137709,30.80435025,4005.9,4005.8,0.002]
[1758815138099,33.30066818,4005.9,4005.8,0.002]
[1758815138305,33.6734221,4005.9,4005.8,0.002]
[1758815138706,30.6734221,4005.9,4005.8,0.002]
[1758815139516,28.17710417,4005.9,4005.8,0.002]
[1758815139717,30.30166818,4005.9,4005.8,0.002]
[1758815140119,27.80535025,4005.9,4005.8,0.002]
[1758815140829,39.68316225,4005.9,4005.8,0.002]
[1758815141020,45.5522341,4005.9,4005.8,0.002]
[1758815142148,45.5522341,4005.9,4005.3,0.002]
[1758815142149,0.792,4005.7,4005.3,0.002]
[1758815142457,0.792,4004.9,4002.0,0.10015812]
[1758815142602,0.792,4004.5,4002.8,0.4682]
[1758815142941,3.0,4004.3,4003.6,2.49769308]
[1758815143146,3.0,4004.1,4003.8,2.49762658]
[1758815143441,4.245,4004.0,4003.8,2.49762307]
[1758815143639,4.245,4004.1,4003.4,0.2257]
[1758815143841,4.245,4004.2,4004.1,2.49744012]
[1758815144045,2.081,4004.9,4004.6,2.49708126]
[1758815144213,0.39165792,4004.7,4003.7,0.2257]
[1758815144412,6.481402,4004.6,4003.8,0.4682]
[1758815144635,4.265,4004.5,4003.8,0.4682]
[1758815144801,3.0,4005.4,4004.4,2.49725302]
[1758815144997,3.0,4005.2,4003.9,0.02497564]
[1758815145315,3.0,4005.0,4004.8,2.49695863]
[1758815145646,3.0,4004.8,4004.7,2.49701394]
[1758815145847,18.659159,4004.8,4004.2,2.49732903]
[1758815146000,3.0,4004.6,4004.1,2.4974215]
[1758815146202,3.0,4004.4,4004.2,2.49736006]
[1758815146426,34.267,4004.3,4004.2,2.49736006]
[1758815147198,18.66761,4004.3,4004.2,2.49736006]
[1758815147396,4.266,4004.3,4004.2,2.72307775]
[1758815147720,0.2265,4005.9,4005.0,2.4968789]
[1758815147920,22.726101,4005.8,4005.0,3.1907789]
[1758815148113,4.266,4005.2,4005.1,2.49681301]
[1758815148530,0.391578,4005.7,4005.6,2.49650489]
[1758815148818,3.0,4005.6,4004.7,0.2257]
[1758815149136,4.267,4005.5,4004.8,2.49700359]
[1758815149340,18.019206,4005.4,4005.1,2.49680497]
[1758815149652,18.019206,4005.4,4004.3,2.49731357]
[1758815149653,8.5081,4005.3,4005.2,3.19065421]
[1758815149804,8.680913,4005.3,4005.2,0.6939]
[1758815150003,8.680913,4005.3,4005.2,3.19059981]
[1758815150247,8.680913,4005.3,4005.2,2.72239981]
[1758815151154,4.267,4005.3,4005.1,2.49681523]
[1758815151311,21.987412,4005.2,4004.5,0.4682]
[1758815151622,4.267,4005.1,4004.4,0.2257]
[1758815151829,30.0,4005.0,4004.0,0.6939]
[1758815152035,4.267,4004.9,4004.8,2.49700359]
[1758815152357,16.79945,4004.9,4004.8,2.49700359]
[1758815152553,16.79945,4004.9,4004.1,2.72314012]
[1758815152554,0.1248,4004.8,4004.1,0.2257]
[1758815152726,4.267,4004.7,4004.6,2.49708347]
[1758815152922,13.479033,4004.7,4004.6,2.49708347]
[1758815153121,11.879033,4004.7,4004.6,2.49708347]
[1758815153320,11.879033,4004.7,4004.1,0.2257]
[1758815153511,0.1248,4004.4,4004.3,2.49726495]
[1758815153709,0.1248,4004.4,4003.7,2.49765272]
[1758815153710,19.334108,4004.4,4004.2,2.49733438]
[1758815153941,14.622047,4004.3,4004.2,2.49733438]
[1758815154317,14.622047,4004.3,4004.1,2.49744012]
[1758815154318,2.649043,4004.3,4004.1,2.49744012]
[1758815154522,0.1248,4004.1,4004.0,2.49750249]
[1758815154744,0.1248,4003.6,4003.5,2.49775909]
[1758815155725,0.1248,4003.6,4003.5,3.19165909]
[1758815155926,2.081,4005.2,4003.6,2.49775202]
[1758815156238,0.1248,4004.1,4004.0,2.49750249]
[1758815156546,0.1248,4004.4,4004.3,2.49731538]
[1758815156748,0.1248,4004.4,4004.3,3.19121538]
[1758815157247,0.1248,4004.8,4004.3,0.71887315]
[1758815157452,0.1248,4004.8,4004.7,2.49706594]
[1758815157753,0.1248,4004.8,4004.7,3.19096594]
[1758815158055,0.1248,4004.8,4004.7,7.45996594]
[1758815158226,0.39156107,4006.0,4004.7,5.53420837]
[1758815158431,0.39156107,4006.0,4005.8,2.49638024]
[1758815158632,6.691883,4005.9,4005.8,2.49638024]
[1758815158827,0.1248,4005.8,4005.7,2.49642747]
[1758815159030,3.0,4005.9,4005.7,2.49642747]
[1758815159428,0.39156107,4006.0,4005.9,2.49631793]
[1758815160349,0.39156107,4006.0,4005.9,2.72201793]
[1758815160732,0.12589806,4006.5,4006.3,2.49601136]
[1758815160927,4.285189,4006.4,4006.3,2.49601136]
[1758815161128,4.760189,4006.4,4006.1,2.49617438]
[1758815161334,4.726751,4006.3,4006.1,2.4961744]
[1758815161629,5.15172,4006.2,4005.9,2.49627466]
[1758815161829,20.660535,4005.9,4004.8,2.3067]
[1758815162032,13.494594,4005.8,4005.7,2.49644256]
[1758815162237,14.144106,4006.0,4005.9,2.49631793]
[1758815162438,14.053806,4006.0,4005.9,2.49631793]
[1758815162755,0.1248,4005.9,4005.1,4.4927]
[1758815162954,0.1248,4005.3,4005.2,3.70342713]
[1758815163255,0.1248,4005.3,4005.2,3.95569467]
[1758815163553,0.1248,4005.3,4005.2,3.93072713]
[1758815163759,0.1248,4005.3,4005.2,3.46982713]
[1758815165151,0.1248,4005.3,4005.2,3.93072713]
[1758815165542,0.1248,4005.3,4005.2,3.46982713]
[1758815167256,0.1248,4005.3,4005.2,3.95569467]
[1758815169059,0.39146874,4006.6,4006.4,2.49600638]
[1758815169237,0.39146874,4006.6,4005.2,1.45894046]
[1758815169238,0.39146874,4006.6,4006.5,2.49594409]
[1758815169860,0.51546874,4006.6,4006.5,2.49594409]
[1758815172758,0.51546874,4006.6,4006.5,2.75370353]
[1758815173141,0.51546874,4006.6,4006.5,2.49594409]
[1758815174940,0.51546874,4006.6,4006.5,6.75394409]
[1758815175765,0.124,4006.6,4006.5,6.75394409]
[1758815175967,30.0,4006.5,4006.2,2.49608895]
[1758815176263,3.19936225,4006.4,4006.3,2.49606373]
[1758815176462,33.19936225,4006.4,4006.2,4.256]
[1758815176664,17.167975,4006.3,4006.2,4.256]
[1758815176976,17.167975,4006.3,4005.4,2.49660599]
[1758815177178,0.1248,4005.8,4005.7,2.49644256]
[1758815177330,0.1248,4005.8,4005.7,6.75144256]
[1758815179628,14.570355,4005.7,4005.4,0.002]
[1758815179862,21.43611,4005.7,4005.5,2.49651397]
[1758815180067,0.1248,4005.5,4005.4,0.002]
[1758815180277,18.985134,4005.5,4005.4,0.002]
[1758815180429,19.666334,4005.5,4005.4,0.002]
[1758815181071,25.956117,4005.5,4005.4,0.002]
[1758815181375,27.016948,4005.5,4005.4,0.002]
[1758815181541,27.96904597,4005.5,4005.4,0.002]
[1758815181870,25.99773997,4005.5,4005.4,0.002]
[1758815182740,23.96479197,4005.5,4005.4,0.002]
[1758815183548,22.331494,4005.5,4005.4,0.002]
[1758815183749,0.1248,4005.5,4005.4,2.49862955]
[1758815184071,3.661043,4005.6,4005.5,2.49656722]
[1758815184257,0.39155019,4005.7,4005.6,2.49650489]
[1758815184574,0.39155019,4005.7,4005.4,0.002]
[1758815184868,13.874789,4005.6,4005.5,2.49656722]
[1758815185070,12.884789,4005.6,4005.5,2.49656722]
[1758815185269,3.0,4005.9,4005.4,4.255]
[1758815185475,13.673072,4005.8,4005.7,2.49644256]
[1758815186177,12.834272,4005.8,4005.7,2.49644256]
[1758815186551,0.2376,4005.9,4005.7,2.49644256]
[1758815186779,12.835072,4005.8,4005.7,2.49644256]
[1758815187079,0.39152519,4006.3,4006.1,2.4961933]
[1758815187278,0.39152519,4006.3,4006.2,2.49613099]
[1758815187585,7.52688419,4006.3,4006.1,2.49619059]
[1758815187766,8.13212,4006.2,4006.1,2.49619059]
[1758815187970,10.13212,4006.2,4006.1,2.49619059]
[1758815188478,8.13212,4006.2,4006.1,2.49619059]
[1758815188982,0.39152519,4006.3,4006.2,2.49613099]
[1758815189283,0.39152519,4006.3,4005.4,0.002]
[1758815189284,0.2376,4006.2,4005.4,0.002]
[1758815189465,25.018917,4006.2,4005.6,2.49650489]
[1758815189784,23.911717,4006.1,4005.7,2.402]
[1758815189969,0.1248,4005.6,4005.4,0.002]
[1758815190166,15.417983,4005.5,4005.4,2.49862955]
[1758815190344,16.099183,4005.5,4005.4,0.002]
[1758815190751,7.196886,4005.5,4005.4,2.49862955]
[1758815191066,0.1248,4005.6,4005.5,2.49656722]
[1758815191658,0.1248,4005.6,4005.5,7.50317055]
[1758815191864,0.1248,4005.6,4005.5,7.96257055]
[1758815192179,0.39152519,4006.3,4006.2,2.49613099]
[1758815192381,0.39152519,4006.3,4006.2,6.74713099]
[1758815192555,0.125,4006.6,4006.5,2.49594409]
[1758815192880,0.125,4006.6,4006.5,6.75094409]
[1758815193477,3.182537,4006.6,4006.5,6.75094409]
[1758815193899,3.182537,4006.6,4006.1,0.2328]
[1758815194101,3.182537,4006.6,4005.0,2.49881763]
[1758815194102,2.49626365,4006.0,4005.0,2.49881763]
[1758815194275,27.41636184,4005.9,4005.4,2.49862243]
[1758815194613,16.289704,4005.8,4005.4,2.49862243]
[1758815194786,15.488504,4005.7,4005.4,2.49862243]
[1758815194979,16.169704,4005.7,4005.4,0.002]
[1758815195307,11.932354,4005.6,4005.4,0.002]
[1758815195494,12.169954,4005.6,4005.4,2.49860591]
[1758815195696,7.00866,4005.5,4005.4,0.002]
[1758815196013,11.976964,4005.5,4005.4,0.002]
[1758815196921,18.9208727,4005.5,4005.4,0.002]
[1758815197223,37.98958232,4005.5,4005.4,0.002]
[1758815197573,2.49722391,4004.5,4003.9,0.002]
[1758815197773,3.0,4004.3,4003.9,0.002]
[1758815197969,4.841748,4004.2,4003.9,0.002]
[1758815198174,3.148,4004.2,4003.9,0.002]
[1758815198475,0.2376,4004.8,4003.9,0.002]
[1758815198679,3.0,4004.6,4003.9,0.002]
[1758815198904,7.486356,4004.5,4003.9,0.002]
[1758815199107,8.167556,4004.5,4003.9,4.26]
[1758815199282,12.431783,4004.4,4003.9,0.002]
[1758815199614,3.0,4004.3,4003.9,0.002]
[1758815199818,24.71493022,4004.2,4003.9,0.002]
[1758815199975,30.0,4004.1,4003.9,0.002]
[1758815200182,29.412584,4004.1,4003.9,0.002]
[1758815200382,10.445607,4004.0,4003.9,0.002]
[1758815200613,2.93376,4004.1,4003.9,2.49954418]
[1758815200819,3.056525,4004.0,4003.9,2.49954418]
[1758815201003,2.393525,4004.0,4003.9,2.49954418]
[1758815201210,3.0,4004.2,4003.9,0.002]
[1758815201433,3.0,4004.3,4003.9,0.002]
[1758815201723,7.832101,4004.2,4003.9,0.002]
[1758815202020,3.6812,4004.5,4004.0,2.49745697]
[1758815202235,4.7638969,4004.5,4004.0,2.49745697]
[1758815202392,1.7638969,4004.5,4003.9,2.49955466]
[1758815202712,3.976603,4004.4,4004.0,0.02497502]
[1758815202892,6.506928,4004.3,4004.2,2.49731759]
[1758815203088,2.220885,4004.5,4004.3,2.49727826]
[1758815203331,2.329736,4004.4,4004.0,4.257]
[1758815203491,9.769274,4004.7,4004.2,2.49733184]
[1758815203819,16.298597,4004.6,4004.1,2.49742605]
[1758815204017,12.488515,4004.5,4004.3,2.49730885]
[1758815204239,5.861197,4004.4,4004.3,2.49730885]
[1758815204394,2.282657,4004.4,4004.2,2.49737083]
[1758815204595,4.390737,4004.3,4004.0,4.257]
[1758815204820,3.0,4004.6,4004.3,2.49726979]
[1758815205011,7.17604,4004.5,4004.3,2.49726979]
[1758815205213,2.2423,4004.5,4004.4,2.49725302]
[1758815205425,2.308507,4004.7,4004.6,2.4971283]
[1758815205726,0.3916455,4004.8,4004.7,2.49706594]
[1758815205937,2.5187295,4004.8,4004.7,3.18026594]
[1758815206132,2.127084,4004.8,4004.7,3.18026594]
[1758815206432,0.2315,4005.3,4004.2,0.6832]
[1758815206595,5.505545,4005.2,4004.3,6.336]
[1758815206796,5.505545,4005.2,4004.9,2.49692686]
[1758815206991,6.200245,4005.2,4005.0,2.49686703]
[1758815207210,5.505545,4005.1,4004.9,2.4969227]
[1758815207589,5.505545,4005.1,4005.0,2.4968789]
[1758815207808,5.398291,4005.1,4004.7,4.257]
[1758815208008,5.169039,4005.0,4004.9,2.49689816]
[1758815208207,5.398291,4005.1,4005.0,2.4968789]
[1758815208392,5.398291,4005.1,4004.8,2.49696193]
[1758815208619,0.2315,4005.1,4005.0,2.49684018]
[1758815208790,0.39155981,4005.6,4004.9,0.02496941]
[1758815208997,4.277336,4005.5,4004.7,4.4949]
[1758815209195,0.1248,4005.0,4004.9,2.49694124]
[1758815209397,0.1248,4005.0,4004.9,4.17355572]
[1758815210137,0.39155981,4005.6,4005.5,2.49656722]
[1758815210730,3.2315,4006.1,4005.8,2.49632464]
[1758815210932,0.1248,4005.8,4005.5,4.254]
[1758815211138,3.0,4005.9,4004.5,0.4453]
[1758815211139,20.50321,4005.7,4005.4,4.254]
[1758815211303,18.856518,4005.6,4005.4,4.254]
[1758815211638,17.703018,4005.5,4005.4,6.75062955]
[1758815211802,16.41529,4005.5,4005.4,6.75062955]
[1758815212001,16.41529,4005.5,4005.4,4.254]
[1758815212398,14.892975,4005.5,4005.4,6.75062955]
[1758815213325,15.124475,4005.5,4005.4,4.254]
[1758815213527,15.124475,4005.5,4005.4,2.49662955]
[1758815213698,15.124475,4005.5,4005.4,6.74862955]
[1758815214104,14.892975,4005.5,4005.4,6.74862955]
[1758815214536,0.36447362,4006.0,4005.4,4.252]
[1758815214837,0.1248,4005.5,4005.4,6.74861236]
[1758815215237,0.1248,4005.5,4005.4,6.74862955]
[1758815215424,0.1248,4005.5,4005.4,4.251]
[1758815215616,0.1248,4005.5,4005.4,6.74762955]
[1758815215815,3.515179,4005.4,4005.0,2.4968789]
[1758815216053,3.515179,4005.4,4005.3,2.49669188]
[1758815216206,7.808927,4005.4,4005.3,2.49667721]
[1758815216407,0.1248,4005.3,4005.1,4.251]
[1758815216614,7.199227,4005.3,4005.1,4.251]
[1758815216814,0.1248,4005.3,4005.1,4.251]
[1758815217014,0.1248,4005.3,4005.2,2.49675421]
[1758815217217,7.199227,4005.3,4005.2,2.49675421]
[1758815217738,7.430727,4005.3,4005.2,6.74875421]
[1758815218749,7.430727,4005.3,4004.6,0.2379]
[1758815219051,0.1248,4004.9,4004.7,4.25]
[1758815219416,0.1248,4004.9,4004.2,2.081]
[1758815219715,0.1248,4004.6,4004.5,6.74718922]
[1758815220111,0.1248,4004.6,4004.5,8.11783487]
[1758815220326,0.1248,4005.0,4004.3,0.1248]
[1758815220651,29.7435,4004.9,4003.9,0.002]
[1758815220827,11.83995679,4004.8,4004.0,2.4974764]
[1758815221146,2.49714434,4004.6,4003.9,0.002]
[1758815221452,22.70405579,4004.5,4003.9,3.441]
[1758815221651,29.9125127,4004.5,4003.9,0.002]
[1758815221850,32.5961287,4004.5,4003.9,0.002]
[1758815222049,36.8491287,4004.5,4003.9,0.002]
[1758815222549,40.3461697,4004.5,4003.9,0.002]
[1758815223513,39.74411753,4004.5,4003.9,0.002]
[1758815223956,16.04438725,4004.5,4004.0,2.49746334]
[1758815224350,5.046595,4004.5,4003.9,2.49956101]
[1758815224550,13.74606,4004.5,4003.9,0.002]
[1758815224748,3.354835,4004.5,4004.4,2.49925302]
[1758815225031,4.954206,4004.7,4004.4,2.49925302]
[1758815225361,12.718117,4004.6,4004.4,0.002]
[1758815225567,11.194884,4004.5,4004.4,0.002]
[1758815225865,14.82419154,4004.5,4004.4,0.002]
[1758815226066,21.07573454,4004.5,4004.4,0.002]
[1758815226270,22.50430033,4004.5,4004.4,0.002]
[1758815226567,2.52847033,4004.5,4004.4,0.002]
[1758815226733,35.96495528,4004.5,4004.4,0.002]
[1758815226936,2.49750249,4004.0,4003.9,0.002]
[1758815227134,4.251,4004.0,4003.9,0.002]
[1758815227462,34.9377,4004.0,4003.9,0.002]
[1758815227687,36.85381008,4004.0,4003.9,0.002]
[1758815227960,22.07681325,4004.0,4003.9,0.002]
[1758815228265,3.456352,4004.0,4003.9,2.49956487]
[1758815228453,4.25,4004.5,4004.2,2.49731558]
[1758815228655,0.62055139,4004.8,4003.9,0.244]
[1758815228834,4.962897,4004.7,4004.0,0.02497502]
[1758815229035,4.962897,4004.7,4004.4,2.49720967]
[1758815229361,2.85856,4004.7,4004.3,2.49729514]
[1758815229565,0.39165139,4004.8,4004.5,2.49719066]
[1758815229566,10.8305,4004.6,4004.5,2.49719066]
[1758815229769,12.386385,4004.7,4004.5,2.49719066]
[1758815230064,6.078755,4004.7,4004.5,2.49713656]
[1758815230232,6.078755,4004.7,4004.3,2.49726206]
[1758815230233,0.39165139,4004.8,4004.6,3.1839283]
[1758815230569,0.39165139,4004.8,4004.7,2.73906594]
[1758815231267,0.39165139,4004.8,4004.6,4.251]
[1758815231479,0.39165139,4004.8,4004.6,6.7481283]
[1758815231480,0.1248,4004.7,4004.6,6.7481283]
[1758815231781,0.39165139,4004.8,4004.7,2.49706594]
[1758815232075,0.1248,4004.9,4004.8,2.49700359]
[1758815232276,0.1248,4004.9,4004.8,4.19019054]
[1758815232478,0.39155696,4005.4,4005.3,2.49669188]
[1758815232679,0.39155696,4005.4,4005.3,6.74869188]
[1758815232977,0.1258,4005.5,4005.4,2.49662955]
[1758815233685,0.1258,4005.5,4005.3,4.252]
[1758815234281,0.1258,4005.5,4005.4,2.49662955]
[1758815234658,8.04852,4005.5,4005.4,2.49662955]
[1758815234853,7.95702,4005.5,4005.4,2.49662955]
[1758815235480,0.1258,4005.5,4005.4,2.49662955]
[1758815235668,2.944231,4005.5,4005.4,2.49662955]
[1758815235864,5.587231,4005.5,4005.4,2.49662955]
[1758815236075,4.973152,4005.5,4005.4,2.49662955]
[1758815236991,0.1258,4005.5,4005.4,2.49662955]
[1758815237290,0.125,4005.5,4005.4,2.49662955]
[1758815237492,0.125,4005.5,4005.4,4.14483086]
[1758815237664,0.0002,4005.5,4005.4,4.11986457]
[1758815237868,0.0002,4005.5,4005.4,7.11986457]
[1758815239472,0.0002,4005.5,4005.4,8.03666457]
[1758815239877,0.0002,4005.5,4005.4,7.24466457]
[1758815240277,0.0002,4005.5,4005.4,14.36566457]
[1758815241589,0.0002,4005.5,4005.4,12.28366457]
[1758815241790,0.0002,4005.5,4005.4,14.36466457]
[1758815245691,0.001,4007.1,4006.9,2.49569492]
[1758815245881,0.001,4007.1,4007.0,6.74163264]
[1758815246598,0.001,4007.1,4007.0,8.36844269]
[1758815246800,0.001,4007.1,4007.0,11.36844269]
[1758815247206,0.001,4007.1,4007.0,11.82174269]
[1758815247600,0.001,4007.1,4007.0,6.87694269]
[1758815247803,0.001,4007.1,4007.0,13.20294269]
[1758815248974,0.043281,4007.1,4007.0,6.87694269]
[1758815249377,0.043281,4007.1,4007.0,13.20294269]
[1758815249999,0.043281,4007.1,4007.0,6.87694269]
[1758815250308,0.749781,4007.1,4007.0,9.74163264]
[1758815252001,0.043281,4007.1,4007.0,9.74163264]
[1758815253024,0.043281,4007.1,4007.0,9.98713264]
[1758815254008,0.043281,4007.1,4007.0,9.74163264]
[1758815254514,0.001,4007.5,4007.4,2.49538354]
[1758815254688,0.001,4007.5,4007.4,6.74038354]
[1758815254887,0.001,4007.5,4007.4,6.49038354]
[1758815256088,0.7075,4007.5,4007.4,6.49038354]
[1758815257094,0.4595,4007.5,4007.4,6.49038354]
[1758815257302,0.001,4007.5,4007.4,6.49038354]
[1758815258196,0.7075,4007.5,4007.4,6.49038354]
[1758815259985,0.001,4007.5,4007.4,6.49038354]
[1758815260623,0.001,4007.5,4007.4,2.24538354]
[1758815260829,0.001,4007.5,4007.4,6.51533737]
[1758815260989,0.001,4007.5,4007.4,6.49038354]
[1758815261191,0.6996,4007.5,4007.4,6.49038354]